bitfinex-derivatives/quotes_SOLF0:USTF0_20240830
["timestamp","ask_amount","ask_price","bid_price","bid_amount"]
[1725006845106,10.97,139.89,139.86,3.5744]
[1725006845514,1.4149,139.92,139.86,3.5744]
[1725006845823,14.5436,139.9,139.88,0.04766494]
[1725006846020,3.64347319,139.89,139.88,0.04766494]
[1725006847211,7.21717319,139.89,139.88,0.04766494]
[1725006848116,3.64347319,139.89,139.88,0.04766494]
[1725006848325,1.4149,139.92,139.88,0.04766494]
[1725006848621,10.97,139.9,139.88,0.04766494]
[1725006848823,14.5437,139.89,139.88,0.04766494]
[1725006849013,10.97,139.89,139.81,19.60671477]
[1725006849214,10.97,139.87,139.81,19.60671477]
[1725006849424,10.97,139.86,139.8,12.318]
[1725006850017,0.05160817,139.84,139.82,0.04951224]
[1725006850516,0.05160817,139.84,139.83,3.5752]
[1725006851718,0.05160817,139.84,139.82,0.04951224]
[1725006852819,0.05160817,139.84,139.83,3.5752]
[1725006853825,0.05160817,139.84,139.82,3.62481224]
[1725006854923,3.62650817,139.84,139.82,3.62481224]
[1725006855416,3.62650817,139.84,139.82,0.04951224]
[1725006856357,3.62650817,139.84,139.82,3.62491224]
[1725006857227,3.62650817,139.84,139.82,0.04951224]
[1725006857722,3.5752,139.83,139.82,0.04951224]
[1725006861424,0.05160817,139.84,139.82,11.01951224]
[1725006861731,0.05160817,139.84,139.82,0.04951224]
[1725006862126,10.97,139.83,139.82,0.04951224]
[1725006862829,14.5452,139.83,139.82,0.04951224]
[1725006863026,10.97,139.83,139.75,10.97]
[1725006863217,10.97,139.81,139.75,10.97]
[1725006863620,3.5763,139.79,139.76,3.5768]
[1725006864027,3.6307113,139.79,139.76,3.6236286]
[1725006864922,0.0544113,139.79,139.77,3.5766]
[1725006865527,3.6307113,139.79,139.76,3.6236286]
[1725006866119,3.6307113,139.79,139.76,0.0468286]
[1725006866120,0.0544113,139.79,139.76,0.0468286]
[1725006866523,3.5767,139.77,139.76,0.0468286]
[1725006866833,14.5467,139.77,139.76,0.0468286]
[1725006867327,19.6467,139.77,139.76,0.0468286]
[1725006867630,3.5777,139.74,139.7,1.2932]
[1725006867829,10.97,139.74,139.67,14.8763]
[1725006868024,10.97,139.72,139.59,32.89358523]
[1725006868226,3.5787,139.7,139.65,10.97]
[1725006868436,10.97,139.72,139.66,10.97]
[1725006868632,2.6138,139.75,139.66,10.97]
[1725006868633,2.6138,139.75,139.67,3.5791]
[1725006868827,0.04515962,139.7,139.68,0.04942861]
[1725006869033,0.05190354,139.7,139.68,0.04942861]
[1725006869226,3.63060354,139.7,139.68,0.04942861]
[1725006869726,0.05190354,139.7,139.68,0.04942861]
[1725006870224,3.63050354,139.7,139.68,0.04942861]
[1725006871432,0.05190354,139.7,139.68,0.04942861]
[1725006872828,3.63040354,139.7,139.68,0.04942861]
[1725006874935,0.05190354,139.7,139.68,3.62832861]
[1725006878643,0.05190354,139.7,139.68,0.04942861]
[1725006879431,0.05190354,139.7,139.68,3.62842861]
[1725006879837,0.05190354,139.7,139.68,0.04942861]
[1725006880941,0.05190354,139.7,139.68,3.62832861]
[1725006881641,0.05190354,139.7,139.69,3.5788]
[1725006911257,15.65,139.76,139.73,3.5776]
[1725006911554,10.99,139.76,139.73,3.5776]
[1725006911755,14.5672,139.76,139.73,3.5776]
[1725006912055,14.5672,139.76,139.74,3.5775]
[1725006912249,14.6165351,139.76,139.74,3.62298747]
[1725006912561,11.0393351,139.76,139.74,3.62298747]
[1725006912960,14.58592473,139.76,139.74,3.62298747]
[1725006913458,14.58592473,139.76,139.74,0.04548747]
[1725006914056,0.0493351,139.76,139.74,0.04548747]
[1725006914659,0.0493351,139.76,139.75,3.5772]
[1725006916072,0.0493351,139.76,139.74,0.04548747]
[1725006916073,11.0393351,139.76,139.74,0.04548747]
[1725006916467,15.6993351,139.76,139.74,0.04548747]
[1725006916769,11.0393351,139.76,139.74,0.04548747]
[1725006916963,14.5672,139.75,139.74,0.04548747]
[1725006920369,3.5778,139.73,139.67,4.66]
[1725006920573,3.5778,139.73,139.66,104.84742113]
[1725006920574,3.49267395,139.72,139.66,108.47782728]
[1725006920774,14.5678,139.73,139.66,108.47782728]
[1725006921272,0.05099059,139.71,139.68,0.05070424]
[1725006921471,0.05099059,139.71,139.7,3.5785]
[1725006921674,0.05099059,139.71,139.68,0.05070424]
[1725006921972,0.05099059,139.71,139.69,3.5785]
[1725006924091,11.04099059,139.71,139.68,0.05070424]
[1725006925075,3.5786,139.7,139.68,3.62970424]
[1725006925974,14.5688,139.69,139.68,0.05070424]
[1725006928061,3.5796,139.66,139.59,10.99]
[1725006928373,14.5696,139.66,139.6,6.0596]
[1725006928568,14.5696,139.66,139.6,1.3996]
[1725006928971,0.0492505,139.64,139.62,0.0522088]
[1725006929272,11.0392505,139.64,139.62,0.0522088]
[1725006929674,14.6193505,139.64,139.62,0.0522088]
[1725006929887,11.0392505,139.64,139.62,0.0522088]
[1725006930177,0.0492505,139.64,139.62,0.0522088]
[1725006930778,0.0492505,139.64,139.62,3.6327088]
[1725006930971,0.0492505,139.64,139.62,0.0522088]
[1725006931377,0.0492505,139.64,139.62,3.6327088]
[1725006931771,14.6193505,139.64,139.62,0.0522088]
[1725006933472,3.5803,139.63,139.62,0.0522088]
[1725006933685,0.0492505,139.64,139.62,0.0522088]
[1725006935282,0.0492505,139.64,139.63,3.5803]
[1725006937299,11.0392505,139.64,139.62,0.0522088]
[1725006937508,10.99,139.63,139.62,0.0522088]
[1725006937678,14.5703,139.63,139.62,0.0522088]
[1725006937875,10.99,139.63,139.55,15.8567064]
[1725006938177,10.99,139.61,139.55,15.8567064]
[1725006938378,10.99,139.61,139.58,3.5815]
[1725006938882,14.61868417,139.61,139.58,3.63619319]
[1725006939283,14.5713,139.59,139.58,0.05469319]
[1725006940788,10.99,139.59,139.58,0.05469319]
[1725006943297,14.5713,139.59,139.58,0.05469319]
[1725006943488,10.99,139.59,139.58,0.05469319]
[1725006944190,8.26868417,139.61,139.58,3.63629319]
[1725006944387,0.04768417,139.61,139.58,0.05469319]
[1725006944592,0.04768417,139.61,139.59,3.5811]
[1725006944789,0.04768417,139.61,139.58,0.05469319]
[1725006945288,0.04768417,139.61,139.6,3.5811]
[1725006961104,14.5697,139.66,139.64,3.5799]
[1725006961303,3.5797,139.66,139.64,3.5799]
[1725006961995,3.63085815,139.66,139.64,3.5799]
[1725006962300,3.63085815,139.66,139.64,3.62508877]
[1725006962903,0.05115815,139.66,139.64,3.62508877]
[1725006964803,3.63075815,139.66,139.64,0.04518877]
[1725006965009,14.62075815,139.66,139.64,0.04518877]
[1725006965809,3.5798,139.65,139.64,0.04518877]
[1725006974919,17.01555815,139.66,139.57,1.3586]
[1725006975121,17.01555815,139.66,139.54,15.63]
[1725006975122,10.99,139.61,139.54,15.63]
[1725006975421,3.60354726,139.6,139.56,3.5819]
[1725006975620,3.5812,139.6,139.56,3.5819]
[1725006976024,0.05039346,139.59,139.57,0.05085683]
[1725006976549,3.63169346,139.59,139.57,0.05085683]
[1725006976723,14.62169346,139.59,139.57,0.05085683]
[1725006976921,3.5816,139.58,139.57,0.05085683]
[1725006978629,14.5716,139.58,139.57,0.05085683]
[1725006983022,0.05039346,139.59,139.57,0.05085683]
[1725006983221,11.04039346,139.59,139.57,0.05085683]
[1725006983428,0.05039346,139.59,139.57,0.05085683]
[1725006984030,0.05039346,139.59,139.57,3.63265683]
[1725006984325,10.99,139.58,139.57,0.05085683]
[1725006986834,14.5716,139.58,139.57,0.05085683]
[1725006987733,14.62189346,139.59,139.57,3.63265683]
[1725006988031,0.05039346,139.59,139.57,0.05085683]
[1725006988736,0.05039346,139.59,139.58,3.5816]
[1725006989964,0.05039346,139.59,139.57,3.63255683]
[1725006991439,3.63169346,139.59,139.57,3.63255683]
[1725006991636,3.63169346,139.59,139.57,0.05085683]
[1725006991837,10.99,139.58,139.57,0.05085683]
[1725006992231,3.63189346,139.59,139.57,0.05085683]
[1725006992440,14.62189346,139.59,139.57,0.05085683]
[1725006993239,3.5816,139.58,139.57,0.05085683]
[1725006994748,11.04039346,139.59,139.52,91.11302113]
[1725006994940,10.99,139.56,139.52,91.11302113]
[1725006995154,10.99,139.54,139.52,91.11302113]
[1725006995538,10.99,139.54,139.48,14.9736]
[1725006995943,10.99,139.54,139.5,3.62988816]
[1725006995944,0.05084642,139.52,139.5,3.62988816]
[1725006996240,0.05084642,139.52,139.5,0.04638816]
[1725006996546,10.99,139.51,139.5,0.04638816]
[1725006996741,14.5734,139.51,139.5,0.04638816]
[1725006997746,0.05084642,139.52,139.5,0.04638816]
[1725006998048,0.05084642,139.52,139.51,14.5734]
[1725006998641,0.05084642,139.52,139.51,3.5834]
[1725006998844,0.05084642,139.52,139.51,14.5734]
[1725006999835,3.5824,139.55,139.53,3.5829]
[1725007000041,10.99,139.57,139.53,3.5829]
[1725007000234,10.99,139.58,139.53,3.5829]
[1725007000635,10.99,139.58,139.52,14.49889968]
[1725007000840,8.26678628,139.6,139.52,14.49889968]
[1725007000841,0.05038557,139.56,139.54,0.04609601]
[1725007001450,0.05038557,139.56,139.55,3.5822]
[1725007002736,0.05038557,139.56,139.54,3.62859601]
[1725007002940,3.63268557,139.56,139.54,0.04609601]
[1725007003445,0.05038557,139.56,139.54,0.04609601]
[1725007004343,0.05038557,139.56,139.55,3.5824]
[1725007011053,0.05038557,139.56,139.54,3.62859601]
[1725007011344,0.05038557,139.56,139.54,0.04609601]
[1725007012247,0.05038557,139.56,139.55,3.5824]
[1725007020960,0.05038557,139.56,139.54,3.62859601]
[1725007021948,3.5824,139.55,139.54,0.04609601]
[1725007022154,14.5724,139.55,139.54,0.04609601]
[1725007024056,3.5833,139.52,139.49,3.5838]
[1725007024256,10.99,139.51,139.49,3.5838]
[1725007024452,10.99,139.51,139.46,15.0134]
[1725007025049,0.04989991,139.5,139.47,0.04771528]
[1725007025362,3.63349991,139.5,139.48,3.5841]
[1725007025756,10.99,139.49,139.47,0.04771528]
[1725007025959,3.5842,139.48,139.47,0.04771528]
[1725007026761,14.574,139.49,139.47,0.04771528]
[1725007028058,3.5842,139.48,139.47,0.04771528]
[1725007029153,0.04989991,139.5,139.47,0.04771528]
[1725007029759,0.04989991,139.5,139.49,3.5839]
[1725007031363,0.04989991,139.5,139.47,0.04771528]
[1725007032660,0.04989991,139.5,139.49,3.5839]
[1725007037871,11.03989991,139.5,139.49,3.5839]
[1725007039768,11.03989991,139.5,139.48,3.584]
[1725007040273,11.03989991,139.5,139.47,0.04771528]
[1725007040274,0.04989991,139.5,139.47,0.04771528]
[1725007040567,0.04989991,139.5,139.49,3.5839]
[1725007049176,11.03989991,139.5,139.49,3.5839]
[1725007049883,11.03989991,139.5,139.47,0.04771528]
[1725007050480,10.99,139.49,139.47,0.04771528]
[1725007051174,3.5842,139.48,139.47,0.04771528]
[1725007052981,3.5847,139.46,139.43,3.5852]
[1725007053285,10.99,139.45,139.4,3.57578312]
[1725007053468,18.24836864,139.45,139.43,3.5854]
[1725007053672,14.66326864,139.45,139.43,3.5854]
[1725007053979,11.04390175,139.45,139.43,3.63660245]
[1725007055273,14.5752,139.44,139.43,0.05120245]
[1725007058584,14.5752,139.44,139.39,3.5863]
[1725007058585,3.5859,139.42,139.39,3.5863]
[1725007058787,10.99,139.41,139.39,3.5863]
[1725007059679,11.04382604,139.41,139.39,3.63688934]
[1725007059879,0.05382604,139.41,139.4,3.5862]
[1725007061884,0.05382604,139.41,139.39,3.63688934]
[1725007062079,0.05382604,139.41,139.39,0.05058934]
[1725007063282,11.04382604,139.41,139.4,3.5862]
[1725007063785,14.62982604,139.41,139.39,0.05058934]
[1725007063984,10.99,139.4,139.39,0.05058934]
[1725007065083,14.5762,139.4,139.39,0.05058934]
[1725007066392,3.5869,139.38,139.32,8.6936]
[1725007066695,54.95,139.4,139.32,2.7017]
[1725007066696,10.99,139.36,139.32,2.7017]
[1725007067388,0.05133484,139.35,139.34,3.5878]
[1725007085498,11.04133484,139.35,139.34,3.5878]
[1725007086301,14.62883484,139.35,139.33,3.64070155]
[1725007086502,10.99,139.34,139.33,3.64070155]
[1725007089109,10.99,139.34,139.33,0.05280155]
[1725007089110,14.5778,139.34,139.33,0.05280155]
[1725007093110,10.99,139.34,139.29,3.5889]
[1725007093338,10.99,139.31,139.29,3.5889]
[1725007094011,10.99,139.31,139.3,3.5888]
[1725007094215,11.03611116,139.32,139.29,0.04835116]
[1725007094519,0.04611116,139.32,139.31,3.5885]
[1725007097209,0.04611116,139.32,139.31,14.5785]
[1725007101517,19.2168,139.38,139.32,10.99]
[1725007101721,15.63,139.4,139.34,10.99]
[1725007101925,3.5866,139.39,139.36,3.587]
[1725007102420,3.6359403,139.39,139.36,3.63498044]
[1725007102627,3.6359403,139.39,139.37,3.5869]
[1725007103124,3.6359403,139.39,139.36,0.04798044]
[1725007103125,0.0493403,139.39,139.38,3.5867]
[1725007103721,0.0493403,139.39,139.37,3.5868]
[1725007105738,3.6358403,139.39,139.37,3.5868]
[1725007107026,14.5767,139.38,139.36,3.63508044]
[1725007109426,10.99,139.38,139.36,0.04798044]
[1725007110024,14.5769,139.38,139.36,3.63508044]
[1725007113933,10.99,139.38,139.37,3.587]
[1725007116737,14.5767,139.38,139.36,3.63518044]
[1725007117040,10.99,139.37,139.36,3.63518044]
[1725007117241,10.99,139.37,139.36,0.04798044]
[1725007117242,14.577,139.37,139.36,0.04798044]
[1725007117436,10.99,139.37,139.3,1.406]
[1725007117739,10.99,139.35,139.3,1.406]
[1725007117938,10.99,139.35,139.33,3.588]
[1725007118531,11.04502591,139.35,139.33,3.63439112]
[1725007120832,11.04502591,139.35,139.34,3.5878]
[1725007121048,0.05502591,139.35,139.34,3.5878]
[1725007127842,11.04502591,139.35,139.33,3.63429112]
[1725007128244,14.63252591,139.35,139.33,3.63429112]
[1725007128950,14.5778,139.34,139.33,0.04639112]
[1725007129141,14.5778,139.34,139.27,2.6556]
[1725007129142,10.99,139.34,139.27,2.6556]
[1725007129349,10.99,139.31,139.27,2.6556]
[1725007129840,10.99,139.31,139.29,3.5889]
[1725007130540,11.03629034,139.31,139.29,3.6367003]
[1725007131147,14.62489034,139.31,139.29,3.6367003]
[1725007131447,14.62489034,139.31,139.29,0.0478003]
[1725007131944,3.5888,139.3,139.29,0.0478003]
[1725007132348,11.03629034,139.31,139.29,0.0478003]
[1725007132541,14.62499034,139.31,139.29,0.0478003]
[1725007132743,11.03629034,139.31,139.29,0.0478003]
[1725007133047,3.5888,139.3,139.29,0.0478003]
[1725007134245,14.62489034,139.31,139.29,0.0478003]
[1725007135951,3.63489034,139.31,139.29,0.0478003]
[1725007136156,0.04629034,139.31,139.29,3.6367003]
[1725007136352,0.04629034,139.31,139.29,0.0478003]
[1725007136655,0.04629034,139.31,139.3,3.5888]
[1725007137252,0.04629034,139.31,139.29,3.6367003]
[1725007138158,3.63479034,139.31,139.29,3.6367003]
[1725007138451,14.62479034,139.31,139.29,3.6367003]
[1725007139250,11.03629034,139.31,139.29,3.6367003]
[1725007139552,0.04629034,139.31,139.29,0.0478003]
[1725007139856,11.03629034,139.31,139.29,0.0478003]
[1725007140353,14.62499034,139.31,139.29,0.0478003]
[1725007140552,11.03629034,139.31,139.29,0.0478003]
[1725007140959,14.62499034,139.31,139.29,0.0478003]
[1725007141459,10.99,139.3,139.29,0.0478003]
[1725007141856,14.5788,139.3,139.29,0.0478003]
[1725007144753,3.5897,139.27,139.24,3.5902]
[1725007145070,10.99,139.3,139.24,3.5902]
[1725007145071,10.99,139.26,139.24,3.5902]
[1725007145561,10.99,139.25,139.23,3.5905]
[1725007145753,10.99,139.25,139.23,3.64153554]
[1725007145955,11.04251319,139.25,139.23,3.64153554]
[1725007146156,3.5903,139.24,139.23,0.05103554]
[1725007147758,14.63261319,139.25,139.23,0.05103554]
[1725007148171,0.05251319,139.25,139.24,3.5903]
[1725007154559,3.64261319,139.25,139.23,3.64143554]
[1725007154759,0.05251319,139.25,139.23,0.05103554]
[1725007155164,0.05251319,139.25,139.24,3.5903]
[1725007168370,31.5677,139.33,139.29,3.589]
[1725007168570,36.2077,139.33,139.29,3.589]
[1725007168776,36.2077,139.33,139.24,28.9425]
[1725007168972,28.7,139.37,139.26,27.56]
[1725007169173,32.2,139.35,139.26,32.2]
[1725007169477,0.04696037,139.32,139.31,3.5883]
[1725007189789,0.04696037,139.32,139.31,14.6183]
[1725007190181,84.72821897,139.36,139.35,3.5875]
[1725007191386,84.72821897,139.36,139.34,3.63452562]
[1725007192786,99.34551897,139.36,139.34,3.63452562]
[1725007196985,95.75821897,139.36,139.34,3.63452562]
[1725007197189,84.72821897,139.36,139.34,3.63452562]
[1725007199898,84.72821897,139.36,139.35,3.5875]
[1725007200092,14.67014305,139.37,139.35,3.5875]
[1725007200293,0.05304305,139.37,139.35,3.5875]
[1725007200896,0.05304305,139.37,139.36,3.5872]
[1725007201298,14.67004305,139.37,139.34,0.04692562]
[1725007201699,11.08304305,139.37,139.34,0.04692562]
[1725007202302,3.5872,139.36,139.34,3.63452562]
[1725007204904,14.67014305,139.37,139.34,3.63452562]
[1725007205406,11.03,139.35,139.34,0.04692562]
[1725007206307,11.03,139.35,139.34,3.63472562]
[1725007207306,14.6175,139.35,139.34,0.04692562]
[1725007207602,14.6175,139.35,139.27,19.6431]
[1725007207603,11.03,139.35,139.27,19.6431]
[1725007207911,11.03,139.32,139.27,15.0031]
[1725007208208,11.03,139.32,139.31,3.5884]
[1725007210108,11.03,139.32,139.3,3.6423399]
[1725007212111,11.03,139.32,139.31,3.5885]
[1725007212706,11.03,139.32,139.3,0.0536399]
[1725007212707,11.03,139.32,139.3,3.6423399]
[1725007213612,11.03,139.32,139.31,3.5885]
[1725007215310,11.03,139.32,139.3,3.6423399]
[1725007216506,11.03,139.31,139.3,0.0536399]
[1725007217114,14.6185,139.31,139.3,0.0536399]
[1725007217416,18.26666134,139.31,139.3,0.0536399]
[1725007222806,14.67816134,139.31,139.23,3.66669902]
[1725007223004,3.5893,139.28,139.23,8.30669902]
[1725007223209,11.03,139.29,139.23,3.66669902]
[1725007223907,0.04999111,139.27,139.26,3.5897]
[1725007224121,11.07999111,139.27,139.25,0.05451239]
[1725007224511,11.07999111,139.27,139.25,3.64451239]
[1725007224512,14.66969111,139.27,139.25,3.64451239]
[1725007224918,0.04999111,139.27,139.25,3.64451239]
[1725007225109,0.04999111,139.27,139.26,3.5898]
[1725007226107,19.7717,139.33,139.29,3.589]
[1725007226306,11.03,139.33,139.27,11.03]
[1725007226506,3.5884,139.32,139.27,11.03]
[1725007226713,3.5884,139.32,139.29,3.5889]
[1725007227113,3.63470231,139.32,139.29,3.64077909]
[1725007227319,3.5886,139.31,139.29,3.64077909]
[1725007228014,3.5886,139.31,139.29,0.05187909]
[1725007228317,14.6188,139.3,139.29,0.05187909]
[1725007232817,11.03,139.3,139.29,0.05187909]
[1725007234929,14.66470231,139.32,139.29,3.64087909]
[1725007235116,14.66470231,139.32,139.29,0.05187909]
[1725007236324,14.66470231,139.32,139.3,3.5887]
[1725007236623,11.07630231,139.32,139.3,3.5887]
[1725007238323,14.66460231,139.32,139.3,3.5887]
[1725007240027,0.04630231,139.32,139.31,3.5885]
[1725007244118,11.07630231,139.32,139.29,0.05187909]
[1725007244327,11.03,139.3,139.29,0.05187909]
[1725007244522,14.6188,139.3,139.29,0.05187909]
[1725007254327,3.5897,139.27,139.21,1.2904]
[1725007254539,14.6197,139.27,139.21,12.3204]
[1725007254833,14.6197,139.27,139.21,16.9604]
[1725007255031,14.6197,139.27,139.25,3.5901]
[1725007255232,3.5898,139.26,139.21,12.3204]
[1725007255540,3.5898,139.26,139.24,3.5902]
[1725007256142,3.5898,139.26,139.23,3.5905]
[1725007256435,11.03,139.25,139.23,3.5905]
[1725007256637,14.6201,139.25,139.23,3.5905]
[1725007257237,14.6201,139.25,139.22,3.6415103]
[1725007257833,3.5901,139.25,139.23,3.5905]
[1725007259741,14.6199,139.26,139.23,3.5905]
[1725007261038,3.5901,139.25,139.23,3.5905]
[1725007261240,11.03,139.26,139.22,3.6415103]
[1725007261536,11.03,139.25,139.22,3.6415103]
[1725007261929,3.5904,139.24,139.22,3.6415103]
[1725007262127,0.05460258,139.27,139.23,3.5906]
[1725007262329,11.03,139.26,139.23,3.5906]
[1725007262639,14.62,139.26,139.23,3.5906]
[1725007262840,14.62,139.26,139.23,3.5905]
[1725007263052,0.05460258,139.27,139.22,0.0508103]
[1725007263337,3.64430258,139.27,139.24,3.5901]
[1725007265235,11.03,139.25,139.23,3.5905]
[1725007265940,14.6202,139.25,139.23,3.5905]
[1725007267138,14.6203,139.24,139.22,3.6415103]
[1725007269039,11.03,139.24,139.22,0.0508103]
[1725007269541,3.5906,139.23,139.22,0.0508103]
[1725007270236,3.5906,139.23,139.04,26.43122753]
[1725007270237,4.64,139.23,139.09,4.0026]
[1725007270435,11.03,139.16,139.1,5.83189402]
[1725007270633,11.03,139.16,139.11,3.55702218]
[1725007270830,11.03,139.16,139.1,15.67]
[1725007271034,0.04588932,139.14,139.12,0.05353106]
[1725007271240,0.04588932,139.14,139.13,3.5929]
[1725007271834,0.04588932,139.14,139.12,3.64683106]
[1725007272236,14.66898932,139.14,139.12,0.05353106]
[1725007272835,11.07588932,139.14,139.12,0.05353106]
[1725007273148,0.04588932,139.14,139.12,0.05353106]
[1725007273339,0.04588932,139.14,139.12,3.64693106]
[1725007274539,0.04588932,139.14,139.13,3.5932]
[1725007275746,0.04588932,139.14,139.12,3.64683106]
[1725007277045,0.04588932,139.14,139.13,3.5932]
[1725007280045,0.04588932,139.14,139.13,14.6232]
[1725007280365,0.04588932,139.14,139.13,3.5932]
[1725007286351,0.04588932,139.14,139.13,14.6232]
[1725007288643,0.04588932,139.14,139.13,3.5932]
[1725007299158,0.04588932,139.14,139.12,3.64673106]
[1725007301958,0.04588932,139.14,139.13,3.5932]
[1725007302964,0.04588932,139.14,139.13,14.6232]
[1725007304058,14.6217,139.19,139.17,3.5921]
[1725007304961,14.67158383,139.19,139.17,3.64614749]
[1725007307568,3.5919,139.18,139.17,0.05404749]
[1725007309669,14.67168383,139.19,139.17,3.64614749]
[1725007310479,0.04988383,139.19,139.18,3.5919]
[1725007318987,0.04988383,139.19,139.17,0.05404749]
[1725007318988,0.04988383,139.19,139.17,3.64614749]
[1725007319197,11.03,139.18,139.17,3.64614749]
[1725007319900,11.03,139.18,139.17,0.05404749]
[1725007322596,14.6219,139.18,139.17,0.05404749]
[1725007328295,11.07988383,139.19,139.17,0.05404749]
[1725007328698,3.5919,139.18,139.17,0.05404749]
[1725007328896,11.07988383,139.19,139.17,0.05404749]
[1725007329599,14.67168383,139.19,139.17,0.05404749]
[1725007330395,3.5919,139.18,139.17,0.05404749]
[1725007330592,11.07988383,139.19,139.17,0.05404749]
[1725007331198,14.67178383,139.19,139.17,0.05404749]
[1725007333397,3.5919,139.18,139.17,0.05404749]
[1725007334130,3.5919,139.18,139.1,8.6266]
[1725007334131,3.5929,139.15,139.1,8.6266]
[1725007334295,3.5929,139.15,139.09,0.02]
[1725007334296,11.03,139.14,139.09,4.66]
[1725007334598,11.03,139.14,139.12,3.5932]
[1725007334901,11.03,139.14,139.09,11.05]
[1725007335299,0.05203515,139.13,139.1,0.04961984]
[1725007335697,0.05203515,139.13,139.12,3.5934]
[1725007336004,11.03,139.19,139.12,11.03]
[1725007336204,3.5934,139.12,139.11,4.64]
[1725007336409,4.64,139.12,139.06,3.60442434]
[1725007336599,11.03,139.11,139.05,4.1154]
[1725007336794,3.5943,139.09,139.05,4.1154]
[1725007336998,0.05464761,139.08,139.06,0.05379605]
[1725007337396,3.64914761,139.08,139.06,0.05379605]
[1725007337600,0.05464761,139.08,139.06,0.05379605]
[1725007338908,0.05464761,139.08,139.06,3.64849605]
[1725007339109,0.05464761,139.08,139.06,0.05379605]
[1725007340003,0.05464761,139.08,139.07,3.5947]
[1725007342606,0.05464761,139.08,139.06,3.64859605]
[1725007343309,0.05464761,139.08,139.06,0.05379605]
[1725007343518,14.6247,139.07,139.06,0.05379605]
[1725007348619,0.05464761,139.08,139.06,0.05379605]
[1725007348811,1.3814,139.16,139.06,11.08379605]
[1725007349007,11.03,139.14,139.11,3.5937]
[1725007349203,14.6231,139.14,139.08,11.03]
[1725007349406,11.03,139.14,139.08,11.03]
[1725007349907,0.04701308,139.12,139.1,3.64867154]
[1725007350107,0.04701308,139.12,139.1,0.05487154]
[1725007350304,3.64051308,139.12,139.1,0.05487154]
[1725007350612,0.04701308,139.12,139.1,0.05487154]
[1725007351412,0.04701308,139.12,139.1,3.64867154]
[1725007351611,0.04701308,139.12,139.1,0.05487154]
[1725007351920,0.04701308,139.12,139.11,14.6237]
[1725007352619,14.6223,139.17,139.13,3.593]
[1725007353726,0.05143647,139.16,139.14,0.05473307]
[1725007354017,0.05143647,139.16,139.14,3.64763307]
[1725007354217,0.05143647,139.16,139.14,0.05473307]
[1725007354717,0.05143647,139.16,139.15,3.5927]
[1725007356920,0.05143647,139.16,139.14,0.05473307]
[1725007356921,0.05143647,139.16,139.14,3.64743307]
[1725007359022,0.05143647,139.16,139.15,3.5927]
[1725007360217,0.05143647,139.16,139.15,14.6227]
[1725007360821,14.6213,139.21,139.15,11.03]
[1725007361228,11.03,139.21,139.15,13.7195]
[1725007361520,223.98,139.28,139.16,11.03]
[1725007361729,11.03,139.24,139.21,3.591]
[1725007361917,0.05111647,139.22,139.21,3.591]
[1725007374448,0.05111647,139.22,139.21,14.621]
[1725007380549,14.6194,139.28,139.25,3.59]
[1725007381246,18.13712782,139.29,139.26,3.5897]
[1725007381452,11.07831868,139.29,139.26,0.05435435]
[1725007382048,11.07831868,139.29,139.27,3.5895]
[1725007383452,14.66741868,139.29,139.27,3.5895]
[1725007384354,14.66741868,139.29,139.26,0.05435435]
[1725007384355,11.03,139.28,139.26,0.05435435]
[1725007385060,14.6194,139.28,139.26,3.64415435]
[1725007388066,14.6194,139.28,139.26,0.05435435]
[1725007388356,3.5896,139.27,139.26,0.05435435]
[1725007389960,44.12,139.27,139.17,63.67813023]
[1725007390161,11.03,139.2,139.17,64.901981]
[1725007390356,11.03,139.2,139.18,3.5917]
[1725007390558,3.67388587,139.22,139.17,60.121981]
[1725007390559,14.621,139.22,139.17,60.121981]
[1725007390859,0.05345899,139.21,139.2,3.5913]
[1725007393160,0.05345899,139.21,139.2,14.6213]
[1725007393357,3.5899,139.26,139.23,3.5905]
[1725007393861,14.6197,139.27,139.2,11.03]
[1725007394274,0.05224252,139.25,139.22,0.04743616]
[1725007394655,0.05224252,139.25,139.24,3.5902]
[1725007395057,0.05224252,139.25,139.22,0.04743616]
[1725007395398,0.05224252,139.25,139.23,3.5904]